Cogmind - Beta 14 @@@ ROGUE MODE // 2025.03.26 @ 13:15:20 Player: satan5 Result: Destroyed by G-34 Mercenary with Small Laser Performance ------------- Evolutions (0) 0 Regions Visited (2) 400 Robots Destroyed (22) 110 Value Destroyed (545) 545 Prototype IDs (5) 100 Alien Tech Used (0) 0 Bonus (0) 0 TOTAL SCORE: 1155 Bonus ------- None Cogmind --------- Core Integrity 0/250 Matter 300/300 Energy 158/160 System Corruption 0% Temperature Cool (8) Movement Walking (120) Location -10/Mines Parts ------- > --- POWER (1) -------- Light Nuclear Core > --- PROPULSION (2) --- Aluminum Leg Aluminum Leg > --- UTILITY (2) ------ Small Storage Unit Hacking Suite > --- WEAPON (2) ------- EM Pulse Gun EM Pulse Gun > --- INVENTORY (8) ---- Light Nuclear Core Hover Unit Hover Unit Hover Unit Improved Heat Sink Seismic Detector Hacking Suite Peak State ------------ > --- POWER ------------ Light Nuclear Core > --- PROPULSION ------- Aluminum Leg Aluminum Leg > --- UTILITY ---------- Small Storage Unit Hacking Suite > --- WEAPON ----------- EM Pulse Gun EM Pulse Gun > --- INVENTORY -------- Light Nuclear Core Hover Unit Hover Unit Hover Unit Improved Heat Sink Seismic Detector Hacking Suite EM Pulse Gun [Rating: 12] Favorites ----------- Power Ion Engine Engine Ion Engine Power Core Light Nuclear Core Propulsion Aluminum Leg Leg Aluminum Leg Hover Unit Hover Unit Utility Small Storage Unit Storage Small Storage Unit Hackware Hacking Suite Weapon Medium Laser Energy Gun Medium Laser Ballistic Gun Assault Rifle Build | -11 -10 -10 ------- Run | Yrd Mat Min Slots Evolved . | . . . Power . | . . . Propulsion . | . . . Utility . | . . . Weapon . | . . . Parts Attached 24 | 7 16 1 Power 4 | 1 3 . Engine 3 | 1 2 . Core 1 | . 1 . Reactor . | . . . Propulsion 9 | 2 7 . Treads . | . . . Leg 8 | 2 6 . Wheel . | . . . Hover 1 | . 1 . Flight . | . . . Utility 2 | 1 1 . Device . | . . . Storage 1 | 1 . . Processor . | . . . Hackware 1 | . 1 . Protection . | . . . Artifact . | . . . Weapon 9 | 3 5 1 Energy Gun 7 | 1 5 1 Energy Cannon . | . . . Ballistic Gun 2 | 2 . . Ballistic Cannon . | . . . Launcher . | . . . Special Weapon . | . . . Impact Weapon . | . . . Slashing Weapon . | . . . Piercing Weapon . | . . . Special Melee Weapon . | . . . Unidentified Prototypes . | . . . Parts Lost 7 | . 6 1 Power 1 | . 1 . Propulsion 3 | . 3 . Utility . | . . . Weapon 3 | . 2 1 Highest Loss Streak 2 | . 2 1 To Critical Strikes . | . . . Average Slot Usage (%) 95 | . 94 100 Engine 9 | . 11 . Core 4 | . 1 14 Leg 24 | . 23 28 Storage 14 | . 14 14 Hackware 13 | . 13 14 Energy Gun 19 | . 16 28 Ballistic Gun 8 | . 10 . Peak Build Rating 12 | 6 12 12 Average Rating 9 | 4 9 11 On Entrance 6 | . 6 12 Naked Turns . | . . . Heaviest Build 14 | 14 14 14 Greatest Support 20 | 20 20 20 Greatest Overweight (x) 4 | . 4 . Average Overweight (x) . | . . . Largest Inventory Capacity 8 | 8 8 8 Average Capacity 7 | 7 8 8 Most Carried 8 | 5 8 8 Average Carried 7 | 2 7 7 Final Capacity 8 | 8 8 8 Final Carried 8 | 4 8 7 Class Distribution -------------------- 93% | Mutant 6% | Scavenger-Mutant Dominant Class ---------------- Mutant | -10/Materials Mutant | -10/Mines Resources | -11 -10 -10 ----------- Run | Yrd Mat Min Matter Collected 769 | 237 522 10 Remotely . | . . . Salvage Created 780 | 25 541 214 Parts 45 | 4 27 14 Haulers Intercepted 2 | . 2 . Recyclers Shooed 1 | . 1 . Parts Field Recycled . | . . . Retrieved Matter . | . . . Parts Self-Destructed . | . . . Prevented . | . . . Kills | -11 -10 -10 ------- Run | Yrd Mat Min Combat Hostiles Destroyed 14 | . 9 5 Guns 13 | . 9 4 Classes Destroyed 7 | 1 5 1 Tunneler 1 | 1 . . Hauler 2 | . 2 . Operator 2 | . 2 . Watcher 3 | . 3 . Swarmer 4 | . 2 2 Grunt 8 | . 7 1 Sentry 2 | . . 2 Best Kill Streak 3 | 1 3 2 Combat Bots Only 2 | . 2 2 Max Kills in Single Turn 1 | 1 1 1 Gunslinging . | . . . Exploded . | . . . Melee . | . . . Uniques/NPCs Destroyed . | . . . Combat | -11 -10 -10 -------- Run | Yrd Mat Min Hostile Shots Fired 113 | . 94 19 Missed 27 | . 21 6 Damage Taken 1073 | . 881 192 Core 254 | . 209 45 Absorbed by Shields . | . . . Core Remaining (%) 100 | 100 . . Volleys Fired 109 | 5 91 13 Largest 2 | 2 2 2 Hottest 100 | 40 100 80 Shots Fired 206 | 10 171 25 Gun 206 | 10 171 25 Cannon . | . . . Launcher . | . . . Special . | . . . Kinetic 119 | 10 109 . Thermal 62 | . 62 . Explosive . | . . . Electromagnetic 25 | . . 25 Robot Hit Streak 17 | 3 11 17 Robot Miss Streak 4 | 2 4 2 Penetration Max . | . . . Secondary Targets 1 | . . 1 Max Gunslinging Chain 1 | . . 1 Shots Hit Robots 131 | 5 106 20 Core Hits 39 | 1 29 9 Critical Kills . | . . . Critical Parts Destroyed . | . . . Critical Strikes 8 | . 7 1 Burn 7 | . 7 . Corrupt 1 | . . 1 Melee Attacks . | . . . Impact . | . . . Slashing . | . . . Piercing . | . . . Sneak Attacks . | . . . Combat Hostiles . | . . . Follow-up Attacks . | . . . Damage Inflicted 1709 | 67 1400 242 Guns 1709 | 67 1400 242 Cannons . | . . . Explosions . | . . . Melee . | . . . Ramming . | . . . Kinetic 949 | 67 882 . Thermal 518 | . 518 . Explosive . | . . . Electromagnetic 242 | . . 242 Impact . | . . . Slashing . | . . . Piercing . | . . . Highest Corruption . | . . . Average Corruption . | . . . Corruption Purged . | . . . Corruption Blocked . | . . . Overload Shots . | . . . Overflow Damage . | . . . Projectiles . | . . . Explosions . | . . . Melee . | . . . Knockbacks . | . . . Impact . | . . . Kinetic . | . . . Secondary . | . . . Self-Inflicted Damage . | . . . Shots . | . . . Rammed . | . . . Targets Rammed . | . . . Kicked . | . . . Crushed . | . . . Highest Temperature 234 | . 196 234 Average Temperature 62 | . 53 96 Received Heat Transfer 540 | . 462 78 Effects 2 | . . 2 Interference 2 | . . 2 Siege Activations . | . . . Robots Corrupted 1 | . . 1 Combat Hostiles 1 | . . 1 Parts Fried 2 | . . 2 Impact Corruptions . | . . . Robots Melted 1 | . 1 . Combat Hostiles . | . . . Parts Melted 3 | . 3 . Heat Transferred 2035 | . 2035 . Parts Sabotaged . | . . . Parts Stolen . | . . . Parts Stripped . | . . . Power Chain Reactions . | . . . Alert | -11 -10 -10 ------- Run | Yrd Mat Min Peak Influence 141 | 5 141 140 Initial 3 | . 3 . Average 38 | . 35 57 Maximum Alert Level . | . . . Low Security (%) 100 | 100 100 100 Level 1 . | . . . Level 2 . | . . . Level 3 . | . . . Level 4 . | . . . Level 5 . | . . . High Security . | . . . Max Security . | . . . Squads Dispatched 3 | . 3 . Investigation 1 | . 1 . Extermination . | . . . Reinforcement 2 | . 2 . Assault . | . . . Garrison . | . . . Intercept . | . . . Searches Triggered . | . . . Construction Impeded . | . . . Haulers Reinforced . | . . . Active Scanning Responses . | . . . Cargo Convoy Interrupts . | . . . Stealth | -11 -10 -10 --------- Run | Yrd Mat Min Distress Signals 1 | . 1 . Communications Jammed . | . . . Distress Signals . | . . . Times Spotted 27 | . 21 6 Peak Tracking Total 5 | . 5 3 Tactical Retreats 1 | . . 1 Traps | -11 -10 -10 ------- Run | Yrd Mat Min Traps Triggered 3 | . 3 . Indirectly . | . . . Trap Hack Attempts . | . . . Triggered . | . . . Disarmed . | . . . Reprogrammed . | . . . Reused . | . . . Traps Extracted . | . . . Installed . | . . . Triggered . | . . . Machines | -11 -10 -10 ---------- Run | Yrd Mat Min Machines Disabled . | . . . Max in Single Turn . | . . . Machines Repaired . | . . . Machines Dismantled . | . . . Machines Sabotaged . | . . . Overloaded Fab Kills . | . . . Hacking | -11 -10 -10 --------- Run | Yrd Mat Min Machines Accessed 8 | . 8 . Terminals 6 | . 6 . Fabricators . | . . . Repair Stations . | . . . Recycling Units 2 | . 2 . Scanalyzers . | . . . Garrison Access . | . . . Total Hacks 44 | . 44 . Successful 26 | . 26 . Failed 17 | . 17 . Catastrophic 4 | . 4 . Database Lockouts 1 | . 1 . Manual 35 | . 35 . Terminals 35 | . 35 . Fabricators . | . . . Repair Stations . | . . . Recycling Units 9 | . 9 . Scanalyzers . | . . . Garrison Access . | . . . Terminal Hacks 11 | . 11 . Robot Analysis 1 | . 1 . Prototype ID Bank 4 | . 4 . Unreport Threat 2 | . 2 . Locate Traps 2 | . 2 . Recall Investigation 1 | . 1 . Hauler Manifests 1 | . 1 . Fabricator Hacks . | . . . Repair Station Hacks . | . . . Recycling Unit Hacks 2 | . 2 . Retrieve Components 2 | . 2 . Scanalyzer . | . . . Garrison Access Hacks . | . . . Unauthorized Hacks 13 | . 13 . Terminals 7 | . 7 . Track 1 | . 1 . Botnet 5 | . 5 . Operators 1 | . 1 . Fabricators . | . . . Repair Stations . | . . . Recycling Units 6 | . 6 . Monitor 1 | . 1 . Reject 2 | . 2 . Recyclers 1 | . 1 . Mask 2 | . 2 . Scanalyzers . | . . . Garrison Access . | . . . Data Cores Recovered . | . . . Used . | . . . Hacking Detections 7 | . 7 . Full Trace Events . | . . . Feedback Events . | . . . Feedback Blocked . | . . . Robot Schematics Acquired . | . . . Robots Built . | . . . Authchips . | . . . Time . | . . . Total Robot Build Rating . | . . . Part Schematics Acquired . | . . . Parts Built . | . . . Authchips . | . . . Time . | . . . Total Part Build Rating . | . . . Parts Repaired . | . . . Time . | . . . Parts Recycled . | . . . Recycled Matter . | . . . Retrieved Matter . | . . . Retrieved Components 13 | . 13 . Parts Scanalyzed . | . . . Part Schematics Acquired . | . . . Parts Damaged . | . . . Bothacking | -11 -10 -10 ------------ Run | Yrd Mat Min Used RIF Installer . | . . . Robots Hacked . | . . . Non-combat . | . . . Combat . | . . . Robot Hacks Applied . | . . . Relay Couplers Released . | . . . Fabnet Peak Effective % . | . . . Robots Rewired . | . . . Allies Hacked . | . . . Hacks Repelled . | . . . Allies | -11 -10 -10 -------- Run | Yrd Mat Min Total Allies . | . . . Largest Group . | . . . Highest-Rated Group . | . . . Highest-Rated Ally . | . . . Total Orders . | . . . Ally Attacks . | . . . Total Damage . | . . . Kills . | . . . Allies Corrupted . | . . . Allies Melted . | . . . Intel | -11 -10 -10 ------- Run | Yrd Mat Min Robot Analysis Total 1 | . 1 . Derelict Logs Recovered 2 | . . 2 Drone Launches . | . . . Drone Recoveries . | . . . Exploration | -11 -10 -10 ------------- Run | Yrd Mat Min Turns Passed 1761 | 67 1321 373 Spaces Moved 1013 | 36 702 275 Core 12 | 9 3 . Treads . | . . . Legs 1001 | 27 699 275 Wheels . | . . . Hover . | . . . Flight . | . . . Fastest Speed 50 | 50 120 120 Average Speed 131 | 102 138 120 Slowest Speed 250 | 120 250 120 Overloaded Moves . | . . . Propulsion Burnouts . | . . . Robots Hopped . | . . . Cave-ins Triggered . | . . . Exploration Rate (%) 51 | 3 87 64 Regions Visited 2 Branch Regions 1 Pre-discovered Areas 1 | . . 1 Known Exits Taken . | . . . Unknown Exits Taken 2 | 1 1 . Scrap Searched 1 | . . 1 Spaces Dug . | . . . Terrain Destroyed . | . . . Melee . | . . . Projectile . | . . . AOE . | . . . Terrain Rammed . | . . . Walls Destroyed . | . . . Machines Disabled . | . . . Actions | -11 -10 -10 --------- Run | Yrd Mat Min Total 1229 | 54 881 294 Wait 61 | . 56 5 Move 1011 | 35 701 275 Hop . | . . . Pick Up 19 | 7 12 . Fast Attach 10 | 3 7 . Attach 10 | 3 6 1 Detach . | . . . Swap 4 | 1 3 . Drop 5 | . 5 . Fire 109 | 5 91 13 Melee . | . . . Ram . | . . . Kick . | . . . Crush . | . . . Escape Stasis . | . . . Rewire . | . . . Trap . | . . . Miscellaneous . | . . . Route ------- -11/Scrapyard -10/Materials (discovered 3 exits: [*Mat x2] / [*Min]) -10/Mines (discovered 1 exit: [*Mat]) History --------- Turn | Location | Event 2 | -11/Scrapyard | Met Revision 17 12 | -11/Scrapyard | Discovered new exit (range 15) 68 | -11/Scrapyard | Entered Materials 312 | -10/Materials | Build established: Mutant 323 | -10/Materials | Core integrity fell below 50% 535 | -10/Materials | Discovered new exit (range 15) 781 | -10/Materials | Central database locked down 791 | -10/Materials | Discovered new exit (range 4) 829 | -10/Materials | Discovered new exit (range 9) 855 | -10/Materials | Core integrity fell below 20% 1389 | -10/Materials | Entered Mines 1404 | -10/Mines | Learned Materials terminal intel 1471 | -10/Mines | Discovered new exit (range 5) 1659 | -10/Mines | Learned location of Zion (-7) 1762 | -10/Mines | Destroyed by G-34 Mercenary with Small Laser Last Messages --------------- 01428_ Switching to secondary target: Y-45 Defender. 01431_ Y-45 Defender destroyed. 01471_ EXIT=FOUND 01635_ K-01 Serf collects debris. 01659_ Acquired derelict log, extracted data. World map updated: -7/Zion. 01705_ Searching scrap... 01705_ Found Datajack. 01705_ Found Mining Claw. 01705_ Found 38 Matter. 01715_ S-10 Pest destroyed. 01722_ EM Pulse Gun destroyed. 01724_ G-47 Trooper misfires. 01741_ G-47 Trooper system terminally corrupted. 01741_ Imp. Heat Sink fried. 01741_ Aluminum Leg fried. 01742_ Overheating: System interference. 01742_ EM Pulse Gun temporarily disabled. 01744_ Acquired 10 matter. Map ----- +----------------------------------------------------+ | | | | | | | | | | | | | | | | | | | | | | | | | ?????????????????????????????????????????????????? | | ???????????????????????????????????####???????###? | | ??????????????????????????????????## ##?????# ## | | ?????????????????????????########## #???## # | | ??????????????########???# ##### | | ??????????????? ???# ######### """ | | ??????????????? #??# #???????# ### """ | | ????????????? """" #### #???????# ##?# """ | | ???????????# """" # /%/#??????# ##??# | | ???????????? """" # ######??? #??## # | | ????????????? #*#?# ?? #??# ## | | ??????????????"""" #[#?# #?## #??# ##? | | ????????????? """" #%### #??## ##??# ##?? | | ????????????? """" =[==@ g#???# #????## ##??? | | ???????????# ##### #???## #?????## ##??## | | ???????????# """" #???# #????##??????# #??## | | ???????????# """" #???# #????????????# #??# [ | | ??????????????"""" #???# #???????????## #??# | | ?????????????? #???# #??????????## #??#!= | | ????????????? #???# #??????????# ##??# | | ?????????????# ########???# #??????????# ##???# | | ?????????????# ??????????? #??????????# #????## | | ?????????????#???????????? ???????????# #?????## | | ?????????????????????????? ???##??????# #??????# | | ?????????????????????????? ??? #??#### #??????# | | ?????????????????????????? ???# #??# #??????# | | ?????????????????????????? #???# #??# ####??????# | | ?????????????????????????? ????# #??# #?????????# | | ?????????????????????????? ????# #### #?????????# | | ???????????????????????????????# #?######### | | ???????????????????????????????# #?# | | ???????????????????????????????# ######?# ###### | | ???????????????????????????????# ####???# #????? | | ??????????????????????????###### ##?## #????? | | ??????????????????????????# ### ###??? | | ??????????????????????????# ##?? | | #?????????????????????????# ##### #?? | | ##?????????????????????????????## #?? | +----------------------------------------------------+ Best States ------------- Heat Dissipation 25 Energy Generation 14 Energy Capacity 250 Matter Stores 300 Matter Capacity 300 Sight Range 16 Terrain Scan Density 10 Evasion (%) 55 Offensive Hacking 10 Item Schematics ----------------- None Robot Schematics ------------------ None Fabricated ------------ Nothing Alien Tech Used ----------------- None Achievements -------------- None Challenges ------------ None Game ------ Seed LightningInsulatedBattery Manual? 0 Play Time 00:12:58 Cumulative 279.1 hours Start 2025.03.26 @ 11:18:06 End 2025.03.26 @ 13:15:20 Sessions 3 Manual Loads 0 Difficulty Rogue Special Mode None Game No. 118 Rogue 104 Adventurer 14 Explorer 0 Win Type - Total 16 Types 13/0/1/1/0/0/0/0/1 Lore% 62 Gallery% 77 Achievement% 67 Wizard Run 0 Options --------- Layout 1 ASCII 0 Keyboard 0 Movement Mouse Keybinds 0 Fullscreen 1 Font 24/Smallcaps Map View 50x35 Zoom Use 0% Tactical HUD 1 Map Filters NONE Filters NONE Steam 1 RUN: 1f1d17cf-252b-45cb-9898-a70280744204